[Event "Late-Titled-Tuesday-Blitz-February-13-2024"]
[Site "Chess.com"]
[Date "2024.02.13"]
[Round "1"]
[White "EcosseKillie"]
[Black "reevecanada"]
[Result "0-1"]
[WhiteElo "2240"]
[BlackElo "2589"]
[TimeControl "180+1"]
[EndTime "14:06:44 PST"]
[Termination "reevecanada won on time"]

1. d4 {[%clk 0:03:00.9]} 1... d5 {[%clk 0:02:53.8]} 2. Bg5 {[%clk 0:03:01.2]}
2... Nf6 {[%clk 0:02:52.7]} 3. Bxf6 {[%clk 0:03:01.4]} 3... gxf6 {[%clk
0:02:53.6]} 4. e3 {[%clk 0:03:01.2]} 4... c5 {[%clk 0:02:54.1]} 5. Nc3 {[%clk
0:03:01.3]} 5... Nc6 {[%clk 0:02:53.7]} 6. Qh5 {[%clk 0:03:01.8]} 6... e5 {[%clk
0:02:51.5]} 7. dxe5 {[%clk 0:02:54.9]} 7... fxe5 {[%clk 0:02:50]} 8. O-O-O
{[%clk 0:02:54.4]} 8... d4 {[%clk 0:02:46.2]} 9. exd4 {[%clk 0:02:54.7]} 9...
cxd4 {[%clk 0:02:45.4]} 10. Bb5 {[%clk 0:02:51.2]} 10... Qa5 {[%clk 0:02:36.2]}
11. Qxe5+ {[%clk 0:02:48.6]} 11... Kd8 {[%clk 0:02:21]} 12. Qxh8 {[%clk
0:02:46.8]} 12... Kc7 {[%clk 0:02:20.5]} 13. Bxc6 {[%clk 0:02:43]} 13... dxc3
{[%clk 0:02:20.4]} 14. Qxc3 {[%clk 0:02:42.6]} 14... Qxc3 {[%clk 0:02:19.9]} 15.
bxc3 {[%clk 0:02:42.7]} 15... Kxc6 {[%clk 0:02:20.5]} 16. Nf3 {[%clk 0:02:43]}
16... b6 {[%clk 0:02:17.7]} 17. Nd4+ {[%clk 0:02:42.6]} 17... Kc5 {[%clk
0:02:16.6]} 18. Rhe1 {[%clk 0:02:41.9]} 18... Bb7 {[%clk 0:02:15]} 19. f3 {[%clk
0:02:40.1]} 19... a5 {[%clk 0:02:13.5]} 20. Kb2 {[%clk 0:02:35.8]} 20... a4
{[%clk 0:02:12.8]} 21. a3 {[%clk 0:02:36.3]} 21... Kc4 {[%clk 0:02:11.9]} 22.
Nf5 {[%clk 0:02:32.6]} 22... Ra5 {[%clk 0:02:08.1]} 23. Nd6+ {[%clk 0:02:30.1]}
23... Bxd6 {[%clk 0:02:06.9]} 24. Rxd6 {[%clk 0:02:31]} 24... Rb5+ {[%clk
0:02:06.9]} 25. Kc1 {[%clk 0:02:29.2]} 25... Kxc3 {[%clk 0:02:06.5]} 26. Re3+
{[%clk 0:02:27.7]} 26... Kc4 {[%clk 0:02:06.7]} 27. Rd7 {[%clk 0:02:23.1]} 27...
Bd5 {[%clk 0:02:04.8]} 28. Kd2 {[%clk 0:02:06.7]} 28... Kd4 {[%clk 0:01:58.1]}
29. Rd3+ {[%clk 0:02:06.2]} 29... Ke5 {[%clk 0:01:56.7]} 30. R7xd5+ {[%clk
0:02:02.4]} 30... Rxd5 {[%clk 0:01:56.6]} 31. Rxd5+ {[%clk 0:02:03.3]} 31...
Kxd5 {[%clk 0:01:55.8]} 32. Kc3 {[%clk 0:02:01.7]} 32... Kc5 {[%clk 0:01:51.3]}
33. Kd3 {[%clk 0:01:57.4]} 33... b5 {[%clk 0:01:50.2]} 34. c3 {[%clk 0:01:57.9]}
34... Kd5 {[%clk 0:01:49.7]} 35. f4 {[%clk 0:01:55.9]} 35... f5 {[%clk
0:01:48.1]} 36. g3 {[%clk 0:01:55.9]} 36... h5 {[%clk 0:01:47.6]} 37. h3 {[%clk
0:01:56.3]} 37... Kc5 {[%clk 0:01:47.7]} 38. h4 {[%clk 0:01:50.2]} 38... Kd5
{[%clk 0:01:46.9]} 39. Kd2 {[%clk 0:01:39.8]} 39... Kc4 {[%clk 0:01:41.1]} 40.
Kc2 {[%clk 0:01:39.8]} 40... Kc5 {[%clk 0:01:40.6]} 41. Kd3 {[%clk 0:01:35.3]}
41... Kd5 {[%clk 0:01:39.9]} 42. Kc2 {[%clk 0:01:29.9]} 42... Ke4 {[%clk
0:01:26.3]} 43. Kd2 {[%clk 0:01:29.1]} 43... Kf3 {[%clk 0:01:25.7]} 44. c4
{[%clk 0:01:29.6]} 44... bxc4 {[%clk 0:01:24.9]} 45. Kc3 {[%clk 0:01:30.5]}
45... Kxg3 {[%clk 0:01:25.1]} 46. Kxc4 {[%clk 0:01:31.4]} 46... Kxf4 {[%clk
0:01:25.4]} 47. Kb4 {[%clk 0:01:32.3]} 47... Kg4 {[%clk 0:01:25.9]} 48. Kxa4
{[%clk 0:01:33.2]} 48... f4 {[%clk 0:01:26.5]} 49. Kb5 {[%clk 0:01:34.1]} 49...
f3 {[%clk 0:01:27.2]} 0-1

[Event "Late-Titled-Tuesday-Blitz-February-13-2024"]
[Site "Chess.com"]
[Date "2024.02.13"]
[Round "1"]
[White "gomeschess02"]
[Black "Galileo22"]
[Result "0-1"]
[WhiteElo "2184"]
[BlackElo "2557"]
[TimeControl "180+1"]
[EndTime "14:06:44 PST"]
[Termination "Galileo22 won by resignation"]

1. e4 {[%clk 0:02:55.4]} 1... Nf6 {[%clk 0:02:59.4]} 2. e5 {[%clk 0:02:54.5]}
2... Nd5 {[%clk 0:02:59.7]} 3. d4 {[%clk 0:02:55.2]} 3... Nb6 {[%clk 0:03:00.3]}
4. Nf3 {[%clk 0:02:53.1]} 4... d6 {[%clk 0:03:00.8]} 5. Be2 {[%clk 0:02:40.2]}
5... g6 {[%clk 0:02:59.3]} 6. O-O {[%clk 0:02:39.7]} 6... Bg7 {[%clk 0:03:00]}
7. Bf4 {[%clk 0:02:39.9]} 7... O-O {[%clk 0:02:59.5]} 8. Nc3 {[%clk 0:02:28.9]}
8... Bg4 {[%clk 0:02:56.7]} 9. exd6 {[%clk 0:02:28.8]} 9... cxd6 {[%clk
0:02:56.3]} 10. h3 {[%clk 0:02:28.3]} 10... Bxf3 {[%clk 0:02:55.9]} 11. Bxf3
{[%clk 0:02:29.2]} 11... Nc6 {[%clk 0:02:56.7]} 12. Ne2 {[%clk 0:02:21.1]} 12...
e5 {[%clk 0:02:26.4]} 13. dxe5 {[%clk 0:02:17.3]} 13... dxe5 {[%clk 0:02:27.3]}
14. Qxd8 {[%clk 0:01:57.8]} 14... Rfxd8 {[%clk 0:02:26.8]} 15. Bg5 {[%clk
0:01:58.7]} 15... f6 {[%clk 0:02:23.9]} 16. Bc1 {[%clk 0:01:56.2]} 16... f5
{[%clk 0:02:23.5]} 17. Bg5 {[%clk 0:01:53]} 17... Rd7 {[%clk 0:02:15.1]} 18.
Bxc6 {[%clk 0:01:29.8]} 18... bxc6 {[%clk 0:02:16]} 19. Rad1 {[%clk 0:01:30]}
19... Rxd1 {[%clk 0:01:57.2]} 20. Rxd1 {[%clk 0:01:28.5]} 20... h6 {[%clk
0:01:58.1]} 21. Be3 {[%clk 0:00:37.1]} 21... e4 {[%clk 0:01:26.8]} 22. b3 {[%clk
0:00:36.3]} 22... Nd5 {[%clk 0:01:11.7]} 23. Bc5 {[%clk 0:00:32.4]} 23... a5
{[%clk 0:00:51.7]} 24. Nd4 {[%clk 0:00:24.5]} 24... Nc3 {[%clk 0:00:39.4]} 25.
Rd2 {[%clk 0:00:11.9]} 25... Rd8 {[%clk 0:00:37]} 26. Nf3 {[%clk 0:00:02.5]}
26... Rd5 {[%clk 0:00:27.2]} 27. Rxd5 {[%clk 0:00:01.7]} 27... cxd5 {[%clk
0:00:28.1]} 28. Nd4 {[%clk 0:00:02.1]} 28... Bxd4 {[%clk 0:00:27.7]} 29. Bxd4
{[%clk 0:00:03]} 29... Ne2+ {[%clk 0:00:28.1]} 30. Kf1 {[%clk 0:00:03.7]} 30...
Nxd4 {[%clk 0:00:29]} 0-1

[Event "Late-Titled-Tuesday-Blitz-February-13-2024"]
[Site "Chess.com"]
[Date "2024.02.13"]
[Round "1"]
[White "HalfIsCrayfish"]
[Black "deepfear"]
[Result "1-0"]
[WhiteElo "2536"]
[BlackElo "1967"]
[TimeControl "180+1"]
[EndTime "14:06:49 PST"]
[Termination "HalfIsCrayfish won on time"]

1. e4 {[%clk 0:02:59.7]} 1... c5 {[%clk 0:02:57.2]} 2. Nc3 {[%clk 0:02:59.1]}
2... g6 {[%clk 0:02:51.6]} 3. d4 {[%clk 0:02:58.4]} 3... cxd4 {[%clk 0:02:44.3]}
4. Qxd4 {[%clk 0:02:59.3]} 4... Nf6 {[%clk 0:02:43.5]} 5. Nf3 {[%clk 0:02:52.7]}
5... Nc6 {[%clk 0:02:43.6]} 6. Qa4 {[%clk 0:02:50.8]} 6... d6 {[%clk 0:02:22]}
7. e5 {[%clk 0:02:41.8]} 7... dxe5 {[%clk 0:02:21.4]} 8. Nxe5 {[%clk 0:02:42.7]}
8... Bd7 {[%clk 0:02:21.3]} 9. Nxd7 {[%clk 0:02:39.8]} 9... Qxd7 {[%clk
0:02:07.4]} 10. Be3 {[%clk 0:02:36.2]} 10... Bg7 {[%clk 0:01:46.2]} 11. Rd1
{[%clk 0:02:33.9]} 11... Qg4 {[%clk 0:01:41.1]} 12. h3 {[%clk 0:02:19.6]} 12...
Qxa4 {[%clk 0:01:36.1]} 13. Nxa4 {[%clk 0:02:20.5]} 13... O-O {[%clk 0:01:24.2]}
14. Be2 {[%clk 0:02:06.7]} 14... Rfd8 {[%clk 0:00:57]} 15. O-O {[%clk
0:01:58.2]} 15... Nd5 {[%clk 0:00:50.1]} 16. Bg5 {[%clk 0:01:23.4]} 16... h6
{[%clk 0:00:49.6]} 17. Bd2 {[%clk 0:01:22.9]} 17... a6 {[%clk 0:00:41.6]} 18. c3
{[%clk 0:01:19.9]} 18... b5 {[%clk 0:00:39.8]} 19. Nc5 {[%clk 0:01:19.6]} 19...
Ne5 {[%clk 0:00:33.4]} 20. Bc1 {[%clk 0:01:13.8]} 20... e6 {[%clk 0:00:29.8]}
21. Rfe1 {[%clk 0:01:12]} 21... Nc4 {[%clk 0:00:28.3]} 22. Bf3 {[%clk
0:01:09.1]} 22... Ne7 {[%clk 0:00:17.3]} 23. Bxa8 {[%clk 0:01:06.7]} 23... Rxa8
{[%clk 0:00:18.2]} 24. a3 {[%clk 0:01:04.7]} 24... Nd5 {[%clk 0:00:15.4]} 25.
Nd3 {[%clk 0:01:02.7]} 25... a5 {[%clk 0:00:13]} 26. Nf4 {[%clk 0:01:02.3]}
26... Nxf4 {[%clk 0:00:11.7]} 27. Bxf4 {[%clk 0:01:03.2]} 27... b4 {[%clk
0:00:12]} 28. axb4 {[%clk 0:01:02.4]} 28... axb4 {[%clk 0:00:12.9]} 29. cxb4
{[%clk 0:01:02.4]} 29... Bxb2 {[%clk 0:00:13.4]} 30. Rd7 {[%clk 0:00:59.1]}
30... Bc3 {[%clk 0:00:12.7]} 31. Rc1 {[%clk 0:00:57.3]} 31... Nb6 {[%clk
0:00:12.7]} 32. Rb7 {[%clk 0:00:54.3]} 32... Nd5 {[%clk 0:00:05]} 33. Bd6 {[%clk
0:00:54.4]} 33... Bb2 {[%clk 0:00:03.8]} 34. Rc2 {[%clk 0:00:52.6]} 34... Bd4
{[%clk 0:00:02.4]} 35. Rb8+ {[%clk 0:00:49.3]} 35... Rxb8 {[%clk 0:00:01.8]} 36.
Bxb8 {[%clk 0:00:50.2]} 36... Nxb4 {[%clk 0:00:01.6]} 37. Rc4 {[%clk 0:00:49.4]}
1-0

[Event "Late-Titled-Tuesday-Blitz-February-13-2024"]
[Site "Chess.com"]
[Date "2024.02.13"]
[Round "1"]
[White "Lucas_Tomiello"]
[Black "Boninknights"]
[Result "1-0"]
[WhiteElo "2703"]
[BlackElo "2368"]
[TimeControl "180+1"]
[EndTime "14:06:52 PST"]
[Termination "Lucas_Tomiello won by resignation"]

1. e4 {[%clk 0:03:00.9]} 1... e5 {[%clk 0:02:55.5]} 2. Bc4 {[%clk 0:03:00.9]}
2... Nc6 {[%clk 0:02:52]} 3. d3 {[%clk 0:03:01.1]} 3... Bc5 {[%clk 0:02:48.9]}
4. Nc3 {[%clk 0:03:01.5]} 4... Nf6 {[%clk 0:02:47.4]} 5. f4 {[%clk 0:03:02]}
5... exf4 {[%clk 0:02:36.4]} 6. Bxf4 {[%clk 0:03:02.9]} 6... O-O {[%clk
0:02:33.8]} 7. Nf3 {[%clk 0:03:00.1]} 7... Bb4 {[%clk 0:02:27.7]} 8. Bg5 {[%clk
0:02:36.8]} 8... h6 {[%clk 0:02:18.2]} 9. Bh4 {[%clk 0:02:36.3]} 9... g5 {[%clk
0:02:10.3]} 10. Bg3 {[%clk 0:02:11.6]} 10... d5 {[%clk 0:02:06.9]} 11. exd5
{[%clk 0:02:03.2]} 11... Nxd5 {[%clk 0:02:05.5]} 12. Bxd5 {[%clk 0:01:56.5]}
12... Qxd5 {[%clk 0:02:01.1]} 13. O-O {[%clk 0:01:56.8]} 13... Bxc3 {[%clk
0:01:55.8]} 14. bxc3 {[%clk 0:01:57.7]} 14... Qc5+ {[%clk 0:01:51.6]} 15. Kh1
{[%clk 0:01:57.5]} 15... Qxc3 {[%clk 0:01:49.5]} 16. Rb1 {[%clk 0:01:52.1]}
16... b6 {[%clk 0:01:42.4]} 17. Bxc7 {[%clk 0:01:38.6]} 17... Bb7 {[%clk
0:01:39.2]} 18. Rb3 {[%clk 0:01:32.3]} 18... Qg7 {[%clk 0:01:31.5]} 19. Qd2
{[%clk 0:01:21.9]} 19... f5 {[%clk 0:01:24.6]} 20. Bd6 {[%clk 0:01:16.5]} 20...
Rfe8 {[%clk 0:01:16.3]} 21. Ba3 {[%clk 0:01:14.4]} 21... Rad8 {[%clk 0:01:02.5]}
22. Bb2 {[%clk 0:01:13.5]} 22... Qg6 {[%clk 0:00:59]} 23. Qc3 {[%clk 0:01:10.9]}
23... Qh7 {[%clk 0:00:42.9]} 24. Rb5 {[%clk 0:01:04.8]} 24... g4 {[%clk
0:00:40.2]} 25. Nh4 {[%clk 0:00:51]} 25... Nd4 {[%clk 0:00:38.2]} 26. Nxf5
{[%clk 0:00:38.8]} 26... Re2 {[%clk 0:00:21.2]} 27. Nxd4 {[%clk 0:00:22.2]}
27... Rxg2 {[%clk 0:00:20.3]} 28. Qc4+ {[%clk 0:00:18.9]} 1-0

[Event "Late-Titled-Tuesday-Blitz-February-13-2024"]
[Site "Chess.com"]
[Date "2024.02.13"]
[Round "1"]
[White "Cambek64"]
[Black "legendisback1"]
[Result "1/2-1/2"]
[WhiteElo "2515"]
[BlackElo "2991"]
[TimeControl "180+1"]
[EndTime "14:06:57 PST"]
[Termination "Game drawn by agreement"]

1. b3 {[%clk 0:02:57]} 1... Nc6 {[%clk 0:02:59.1]} 2. Bb2 {[%clk 0:02:56.6]}
2... e5 {[%clk 0:02:59]} 3. e3 {[%clk 0:02:55.8]} 3... Nf6 {[%clk 0:02:57.6]} 4.
Bb5 {[%clk 0:02:55.2]} 4... Bd6 {[%clk 0:02:56.3]} 5. Nf3 {[%clk 0:02:41.8]}
5... e4 {[%clk 0:02:56.2]} 6. Nd4 {[%clk 0:02:36.8]} 6... O-O {[%clk 0:02:43.1]}
7. Be2 {[%clk 0:02:28.3]} 7... Ne7 {[%clk 0:02:39.6]} 8. d3 {[%clk 0:02:27]}
8... exd3 {[%clk 0:02:37.6]} 9. cxd3 {[%clk 0:02:24.6]} 9... c6 {[%clk
0:02:26.4]} 10. O-O {[%clk 0:02:22.7]} 10... Bc7 {[%clk 0:02:26.5]} 11. Nd2
{[%clk 0:02:23]} 11... d5 {[%clk 0:02:26.5]} 12. b4 {[%clk 0:02:18.1]} 12... Ng6
{[%clk 0:02:23]} 13. N2f3 {[%clk 0:02:15.7]} 13... a5 {[%clk 0:02:16.2]} 14. a3
{[%clk 0:02:11.3]} 14... Re8 {[%clk 0:02:11.6]} 15. h3 {[%clk 0:02:04.3]} 15...
Bd6 {[%clk 0:02:07.3]} 16. Qb3 {[%clk 0:02:02.8]} 16... Bd7 {[%clk 0:01:59.1]}
17. Bc3 {[%clk 0:02:02.8]} 17... a4 {[%clk 0:01:55.9]} 18. Qb2 {[%clk
0:02:02.8]} 18... b6 {[%clk 0:01:56.8]} 19. Rac1 {[%clk 0:01:50.1]} 19... c5
{[%clk 0:01:53.6]} 20. Nc2 {[%clk 0:01:50.5]} 20... d4 {[%clk 0:01:53.3]} 21.
Bd2 {[%clk 0:01:50.9]} 21... Nf4 {[%clk 0:01:45.5]} 22. Rfe1 {[%clk 0:01:50.9]}
22... Nxe2+ {[%clk 0:01:43.9]} 23. Rxe2 {[%clk 0:01:51.5]} 23... Bf5 {[%clk
0:01:36.1]} 24. e4 {[%clk 0:01:50.9]} 24... c4 {[%clk 0:01:36]} 25. Ncxd4 {[%clk
0:01:29.2]} 25... cxd3 {[%clk 0:01:33.3]} 26. Re3 {[%clk 0:01:01.8]} 26... Bxe4
{[%clk 0:01:27.1]} 27. Rce1 {[%clk 0:00:59]} 27... Bf4 {[%clk 0:01:25.4]} 28.
Rxe4 {[%clk 0:00:58.4]} 28... Rxe4 {[%clk 0:01:22.2]} 29. Rxe4 {[%clk
0:00:55.8]} 29... Bxd2 {[%clk 0:01:22]} 30. Nxd2 {[%clk 0:00:36.9]} 30... Nxe4
{[%clk 0:01:20.1]} 31. Nxe4 {[%clk 0:00:37.5]} 31... Qd5 {[%clk 0:01:19.8]} 32.
Nd2 {[%clk 0:00:32.8]} 32... Rd8 {[%clk 0:01:12.3]} 33. N4f3 {[%clk 0:00:23.8]}
33... Rc8 {[%clk 0:01:11]} 34. Nd4 {[%clk 0:00:19.2]} 34... b5 {[%clk
0:00:58.2]} 35. N2f3 {[%clk 0:00:15.7]} 35... h6 {[%clk 0:00:57.2]} 36. g4
{[%clk 0:00:14.2]} 36... Rc4 {[%clk 0:00:50.2]} 37. Nf5 {[%clk 0:00:13.5]}
1/2-1/2

[Event "Late-Titled-Tuesday-Blitz-February-13-2024"]
[Site "Chess.com"]
[Date "2024.02.13"]
[Round "1"]
[White "FrenchMonster2002"]
[Black "sergiochess83"]
[Result "0-1"]
[WhiteElo "2446"]
[BlackElo "2851"]
[TimeControl "180+1"]
[EndTime "14:06:57 PST"]
[Termination "sergiochess83 won on time"]

1. e4 {[%clk 0:03:00.9]} 1... e6 {[%clk 0:02:57.2]} 2. d4 {[%clk 0:02:59.4]}
2... d5 {[%clk 0:02:54.8]} 3. exd5 {[%clk 0:02:57.8]} 3... exd5 {[%clk
0:02:54.7]} 4. Nf3 {[%clk 0:02:58.1]} 4... Bd6 {[%clk 0:02:53.7]} 5. Bd3 {[%clk
0:02:58]} 5... Ne7 {[%clk 0:02:53.9]} 6. O-O {[%clk 0:02:55.5]} 6... O-O {[%clk
0:02:52]} 7. Nc3 {[%clk 0:02:53.4]} 7... c6 {[%clk 0:02:51.8]} 8. Ne2 {[%clk
0:02:51.5]} 8... Bf5 {[%clk 0:02:51.2]} 9. Bf4 {[%clk 0:02:46.6]} 9... Re8
{[%clk 0:02:50]} 10. c3 {[%clk 0:02:44.9]} 10... Na6 {[%clk 0:02:45.1]} 11. Bxd6
{[%clk 0:02:40.8]} 11... Qxd6 {[%clk 0:02:44.6]} 12. Ng3 {[%clk 0:02:41.6]}
12... Bxd3 {[%clk 0:02:38.3]} 13. Qxd3 {[%clk 0:02:42.5]} 13... Nc7 {[%clk
0:02:37.7]} 14. Rfe1 {[%clk 0:02:41.5]} 14... Ng6 {[%clk 0:02:34.9]} 15. Nf5
{[%clk 0:02:33.7]} 15... Qf6 {[%clk 0:02:34.4]} 16. g3 {[%clk 0:02:33.5]} 16...
Ne6 {[%clk 0:02:23.2]} 17. Ne5 {[%clk 0:02:13.8]} 17... Nxe5 {[%clk 0:02:19]}
18. Rxe5 {[%clk 0:02:12.3]} 18... Ng5 {[%clk 0:02:05.6]} 19. Rae1 {[%clk
0:02:03.4]} 19... Ne4 {[%clk 0:02:05.2]} 20. Rxe8+ {[%clk 0:01:06.4]} 20... Rxe8
{[%clk 0:02:03.7]} 21. Qf3 {[%clk 0:01:07]} 21... Re6 {[%clk 0:01:46.4]} 22. Kg2
{[%clk 0:01:00]} 22... h6 {[%clk 0:01:25.5]} 23. h4 {[%clk 0:00:51]} 23... Nd2
{[%clk 0:01:02.6]} 24. Rxe6 {[%clk 0:00:31.4]} 24... Qxe6 {[%clk 0:00:47.5]} 25.
Qg4 {[%clk 0:00:22.9]} 25... Qf6 {[%clk 0:00:42.1]} 26. Ne3 {[%clk 0:00:08.2]}
26... g6 {[%clk 0:00:21.6]} 27. Qc8+ {[%clk 0:00:05.7]} 27... Kg7 {[%clk
0:00:20.7]} 28. Qxb7 {[%clk 0:00:02.9]} 28... Qf3+ {[%clk 0:00:20]} 29. Kg1
{[%clk 0:00:01.5]} 29... Ne4 {[%clk 0:00:20.1]} 0-1

[Event "Late-Titled-Tuesday-Blitz-February-13-2024"]
[Site "Chess.com"]
[Date "2024.02.13"]
[Round "1"]
[White "Lion-Al-Messi"]
[Black "miraitrunks"]
[Result "1-0"]
[WhiteElo "2565"]
[BlackElo "2198"]
[TimeControl "180+1"]
[EndTime "14:06:58 PST"]
[Termination "Lion-Al-Messi won by resignation"]

1. e4 {[%clk 0:03:00.9]} 1... c5 {[%clk 0:02:58.8]} 2. Nf3 {[%clk 0:03:00.8]}
2... d6 {[%clk 0:02:58.5]} 3. d4 {[%clk 0:03:01]} 3... cxd4 {[%clk 0:02:59.4]}
4. Nxd4 {[%clk 0:03:01.7]} 4... Nf6 {[%clk 0:02:59.8]} 5. Nc3 {[%clk 0:03:02]}
5... g6 {[%clk 0:03:00.3]} 6. Be2 {[%clk 0:03:01.4]} 6... Bg7 {[%clk 0:03:00.5]}
7. O-O {[%clk 0:03:02]} 7... O-O {[%clk 0:03:00]} 8. Be3 {[%clk 0:03:02.4]} 8...
Nc6 {[%clk 0:02:59.8]} 9. h3 {[%clk 0:03:02.7]} 9... Bd7 {[%clk 0:02:57.5]} 10.
Qd2 {[%clk 0:03:02.9]} 10... Nxd4 {[%clk 0:02:57.3]} 11. Bxd4 {[%clk 0:03:02.7]}
11... Bc6 {[%clk 0:02:57.6]} 12. Bf3 {[%clk 0:03:03.2]} 12... b5 {[%clk
0:02:56.5]} 13. a4 {[%clk 0:02:55.2]} 13... a6 {[%clk 0:02:46.6]} 14. axb5
{[%clk 0:02:53]} 14... axb5 {[%clk 0:02:47.5]} 15. Bxf6 {[%clk 0:02:39.8]} 15...
Bxf6 {[%clk 0:02:43.8]} 16. e5 {[%clk 0:02:39.5]} 16... Rxa1 {[%clk 0:02:39.5]}
17. Rxa1 {[%clk 0:02:38.2]} 17... Bxf3 {[%clk 0:02:27.9]} 18. exf6 {[%clk
0:02:38]} 18... Bc6 {[%clk 0:02:27.5]} 19. Rd1 {[%clk 0:02:31.4]} 19... b4
{[%clk 0:02:22.8]} 20. fxe7 {[%clk 0:02:23.5]} 20... Qxe7 {[%clk 0:02:20.2]} 21.
Nd5 {[%clk 0:02:20.3]} 21... Qe5 {[%clk 0:02:17.4]} 22. Nxb4 {[%clk 0:02:16.1]}
22... Ba8 {[%clk 0:02:08.4]} 23. Qxd6 {[%clk 0:02:08.6]} 23... Qxb2 {[%clk
0:01:45.9]} 24. Qd4 {[%clk 0:02:07.8]} 24... Qxd4 {[%clk 0:01:21.1]} 25. Rxd4
{[%clk 0:02:08.7]} 25... Re8 {[%clk 0:01:19.8]} 26. Rd1 {[%clk 0:02:02.6]} 26...
Kg7 {[%clk 0:01:18.4]} 27. Rc1 {[%clk 0:02:00.7]} 27... Re4 {[%clk 0:01:05.2]}
28. c4 {[%clk 0:01:58.6]} 28... g5 {[%clk 0:00:58.1]} 29. Nd3 {[%clk 0:01:53.4]}
29... Rd4 {[%clk 0:00:51.1]} 30. Ne5 {[%clk 0:01:50.7]} 30... f6 {[%clk
0:00:50.9]} 31. Ng4 {[%clk 0:01:47]} 31... f5 {[%clk 0:00:42.1]} 32. Ne3 {[%clk
0:01:46.8]} 32... Kg6 {[%clk 0:00:36.4]} 33. c5 {[%clk 0:01:46.2]} 33... g4
{[%clk 0:00:27.8]} 34. hxg4 {[%clk 0:01:43.8]} 34... fxg4 {[%clk 0:00:28.7]} 35.
c6 {[%clk 0:01:38.7]} 35... g3 {[%clk 0:00:20]} 36. fxg3 {[%clk 0:01:33.5]}
36... Rd3 {[%clk 0:00:14.2]} 37. c7 {[%clk 0:01:33]} 37... Bb7 {[%clk
0:00:14.3]} 38. Ng4 {[%clk 0:01:25.6]} 38... Rd2 {[%clk 0:00:11.6]} 39. c8=Q
{[%clk 0:01:00.6]} 39... Rxg2+ {[%clk 0:00:07.8]} 40. Kf1 {[%clk 0:01:00.8]}
40... Bxc8 {[%clk 0:00:06.9]} 41. Ne5+ {[%clk 0:01:01.2]} 41... Kf5 {[%clk
0:00:04.3]} 42. Kxg2 {[%clk 0:01:02.1]} 42... Bb7+ {[%clk 0:00:04]} 43. Nf3
{[%clk 0:01:02.7]} 43... Kg4 {[%clk 0:00:04.2]} 44. Rc4+ {[%clk 0:01:03.3]} 1-0

[Event "Late-Titled-Tuesday-Blitz-February-13-2024"]
[Site "Chess.com"]
[Date "2024.02.13"]
[Round "1"]
[White "Sanan_Sjugirov"]
[Black "kikoveiga"]
[Result "1-0"]
[WhiteElo "2986"]
[BlackElo "2507"]
[TimeControl "180+1"]
[EndTime "14:07:00 PST"]
[Termination "Sanan_Sjugirov won by resignation"]

1. e4 {[%clk 0:03:00.9]} 1... c5 {[%clk 0:02:58]} 2. Nf3 {[%clk 0:02:59.6]} 2...
e6 {[%clk 0:02:58.5]} 3. d3 {[%clk 0:02:59.3]} 3... Nc6 {[%clk 0:02:57.8]} 4. g3
{[%clk 0:02:59.2]} 4... Nf6 {[%clk 0:02:56.3]} 5. Bg2 {[%clk 0:02:59.1]} 5... d5
{[%clk 0:02:56.4]} 6. Qe2 {[%clk 0:02:59.2]} 6... Be7 {[%clk 0:02:56]} 7. a4
{[%clk 0:02:56.4]} 7... b6 {[%clk 0:02:50.3]} 8. O-O {[%clk 0:02:52.7]} 8... O-O
{[%clk 0:02:47.7]} 9. e5 {[%clk 0:02:47.7]} 9... Nd7 {[%clk 0:02:44.6]} 10. h4
{[%clk 0:02:42.6]} 10... Bb7 {[%clk 0:02:43.4]} 11. Bf4 {[%clk 0:02:39.7]} 11...
Nd4 {[%clk 0:02:42.2]} 12. Nxd4 {[%clk 0:02:39.3]} 12... cxd4 {[%clk 0:02:43.1]}
13. Nd2 {[%clk 0:02:38.5]} 13... Rc8 {[%clk 0:02:41.7]} 14. Nf3 {[%clk
0:02:37.8]} 14... Bc5 {[%clk 0:02:39.1]} 15. h5 {[%clk 0:02:34.5]} 15... h6
{[%clk 0:02:31.9]} 16. Rfe1 {[%clk 0:02:24.6]} 16... Re8 {[%clk 0:02:26.3]} 17.
Qd2 {[%clk 0:01:42.9]} 17... Qe7 {[%clk 0:02:09.7]} 18. c3 {[%clk 0:01:39.2]}
18... dxc3 {[%clk 0:02:07.8]} 19. bxc3 {[%clk 0:01:40.1]} 19... Qd8 {[%clk
0:01:50.5]} 20. d4 {[%clk 0:01:35]} 20... Bf8 {[%clk 0:01:49.3]} 21. g4 {[%clk
0:01:35.3]} 21... Qc7 {[%clk 0:01:06.5]} 22. Rac1 {[%clk 0:01:30.6]} 22... Qc4
{[%clk 0:00:56.7]} 23. g5 {[%clk 0:01:29.5]} 23... hxg5 {[%clk 0:00:55.6]} 24.
Bxg5 {[%clk 0:01:30]} 24... Qxa4 {[%clk 0:00:54.7]} 25. h6 {[%clk 0:01:29.3]}
25... Qa3 {[%clk 0:00:25.4]} 26. Nh2 {[%clk 0:01:12.6]} 26... gxh6 {[%clk
0:00:16.7]} 27. Bxh6 {[%clk 0:01:13.5]} 27... Bxh6 {[%clk 0:00:16.8]} 28. Qxh6
{[%clk 0:01:14]} 28... Qf8 {[%clk 0:00:17.4]} 29. Qh4 {[%clk 0:01:13.3]} 29...
f5 {[%clk 0:00:12.9]} 30. Re3 {[%clk 0:01:11.2]} 30... Kf7 {[%clk 0:00:11.9]}
31. Nf3 {[%clk 0:00:58.7]} 31... Qh8 {[%clk 0:00:10.4]} 32. Ng5+ {[%clk
0:00:58.6]} 32... Ke7 {[%clk 0:00:10.8]} 33. Nh7+ {[%clk 0:00:57.1]} 33... Kf7
{[%clk 0:00:10.1]} 34. Rh3 {[%clk 0:00:38.3]} 34... Rg8 {[%clk 0:00:08.2]} 35.
Ng5+ {[%clk 0:00:36.5]} 35... Ke7 {[%clk 0:00:07.7]} 36. Qh7+ {[%clk 0:00:32.4]}
36... Qxh7 {[%clk 0:00:06.2]} 37. Rxh7+ {[%clk 0:00:33.3]} 37... Kd8 {[%clk
0:00:06.6]} 38. Nxe6+ {[%clk 0:00:33.6]} 1-0